fUSD/lending_fUSD_20260416
["ID","MTS","AMOUNT","RATE_DAILY","PERIOD"]
[420593941,1776288646764,-524.3524563,0.00011099,2]
[420593942,1776288646774,-524.3524563,0.00011099,2]
[420593943,1776288646784,-524.3524563,0.00011099,2]
[420593944,1776288646793,-150.0,0.00011303,2]
[420593945,1776288646802,-1600.0,0.00011321,2]
[420593946,1776288646812,-548.16,0.0001137,2]
[420593947,1776288646821,-250.97,0.00011383,2]
[420593948,1776288646832,-2000.0,0.00011419,2]
[420593949,1776288646841,-1048.16,0.00011507,2]
[420593950,1776288646851,-885.02935859,0.00011562,2]
[420593951,1776288646860,-524.3524563,0.0001169,2]
[420593952,1776288646870,-167.77,0.00011803,2]
[420593953,1776288646879,-161.4,0.00011828,2]
[420593954,1776288646889,-244.2647,0.000119,2]
[420593955,1776288646898,-1615.32916233,0.00012037,2]
[420593956,1776288646908,-1153.0,0.00012278,3]
[420593957,1776288646917,-160.0,0.00012278,3]
[420593958,1776288646927,-1600.0,0.00012453,2]
[420593959,1776288646936,-2000.0,0.00012457,2]
[420593960,1776288646947,-524.3524563,0.00012532,2]
[420593961,1776288646956,-160.0,0.00012853,2]
[420593962,1776288646965,-9514.06,0.00012866,2]
[420593963,1776288646975,-1047.0,0.00012892,2]
[420593964,1776288646984,-6027.0,0.00012892,2]
[420593965,1776288646994,-622.0,0.00012892,2]
[420593967,1776288647003,-800.0,0.000129,4]
[420593968,1776288647012,-86069.02,0.00012954,2]
[420593969,1776288647022,-250.0,0.00013,2]
[420593970,1776288647031,-1615.32916233,0.00013003,2]
[420593971,1776288647040,-161.4,0.00013011,2]
[420593972,1776288647050,-1428.38747117,0.00013098,2]
[420593973,1776288647060,-151.0,0.00013098,2]
[420593974,1776288647069,-156.587,0.00013098,2]
[420593975,1776288647079,-195.93360297,0.00013098,2]
[420593976,1776288647088,-174.61919141,0.00013098,2]
[420593977,1776288647098,-209.40437684,0.00013098,2]
[420593978,1776288647107,-246.97304237,0.00013098,2]
[420593979,1776288647116,-721.12765535,0.00013098,2]
[420593980,1776288647126,-500.0,0.00013098,2]
[420593981,1776288647135,-500.0,0.00013098,2]
[420593982,1776288647145,-500.0,0.00013098,2]
[420593983,1776288647154,-500.0,0.00013098,2]
[420593984,1776288647164,-500.0,0.00013098,2]
[420593985,1776288647174,-500.0,0.00013098,2]
[420593986,1776288647183,-500.0,0.00013098,2]
[420593987,1776288647192,-9552.16786547,0.00013098,2]
[420593988,1776288647202,-500.0,0.00013098,2]
[420593989,1776288647211,-500.0,0.00013098,2]
[420593990,1776288647220,-743.50770149,0.00013098,2]
[420593991,1776288647229,-500.0,0.00013098,2]
[420593992,1776288647239,-500.0,0.00013098,2]
[420593993,1776288647248,-500.0,0.00013098,2]
[420593994,1776288647257,-693.3919763,0.00013098,2]
[420593995,1776288647267,-151.0,0.00013098,2]
[420593996,1776288647276,-235.75327194,0.00013098,2]
[420593997,1776288647286,-244.476143,0.00013098,2]
[420593998,1776288647296,-253.52176029,0.00013098,2]
[420593999,1776288647305,-200.0,0.00013098,2]
[420594000,1776288647315,-262.90206542,0.00013098,2]
[420594001,1776288647324,-272.62944185,0.00013098,2]
[420594002,1776288647333,-151.0,0.00013098,2]
[420594003,1776288647343,-282.71673119,0.00013098,2]
[420594004,1776288647352,-293.17725025,0.00013098,2]
[420594005,1776288647361,-578.20924308,0.00013098,2]
[420594006,1776288647802,-304.02480851,0.00013098,2]
[420594007,1776288647841,-315.27372642,0.00013098,2]
[420594008,1776288647851,-326.9388543,0.00013098,2]
[420594009,1776288647861,-339.03559191,0.00013098,2]
[420594010,1776288647870,-151.0,0.00013098,2]
[420594011,1776288647879,-1153.50947614,0.00013098,2]
[420594012,1776288647889,-1300.4901367,0.00013124,2]
[420594013,1776288647898,-9905.5980765,0.00013153,2]
[420594014,1776288647908,-500.0,0.00013153,2]
[420594015,1776288647918,-151.0,0.00013153,2]
[420594016,1776288647927,-160.0,0.00013157,2]
[420594017,1776288647936,-1586.430213,0.00013157,2]
[420594018,1776288647946,-3012.860426,0.00013157,2]
[420594019,1776288647956,-160.0,0.00013157,2]
[420594020,1776288647965,-3901.307618,0.00013157,2]
[420594021,1776288647975,-7642.615237,0.00013157,2]
[420594022,1776288647984,-160.0,0.00013157,2]
[420594023,1776288647994,-1115.640225,0.00013157,2]
[420594024,1776288648003,-2071.28045,0.00013157,2]
[420594025,1776288648012,-1000.0,0.00013158,2]
[420594026,1776288648022,-6935.33709364,0.00013208,2]
[420594027,1776288648043,-511.40096274,0.00013208,2]
[420594028,1776288648058,-2187.48845603,0.00013208,2]
[420594029,1776288707962,10000.01,8.322e-05,2]
[420594030,1776288707986,10000.01,8.322e-05,2]
[420594031,1776288708009,10000.01,8.322e-05,2]
[420594032,1776288708034,10000.01,8.322e-05,2]
[420594033,1776288714239,-9527.59151305,8.322e-05,2]
[420594034,1776288714282,-10000.01,8.322e-05,2]
[420594035,1776288714398,-10000.01,8.322e-05,2]
[420594036,1776288714515,-10000.01,8.322e-05,2]
[420594037,1776288714645,-10000.01,8.322e-05,2]
[420594038,1776288714746,-10000.01,8.322e-05,2]
[420594039,1776288714860,-10000.01,8.322e-05,2]
[420594040,1776288714985,-10000.01,8.322e-05,2]
[420594041,1776288715121,-10000.01,8.322e-05,2]
[420594042,1776288715241,-10000.01,8.322e-05,2]
[420594043,1776288715357,-10000.01,8.322e-05,2]
[420594044,1776288716481,-10000.01,8.322e-05,2]
[420594045,1776288716588,-10000.01,8.322e-05,2]
[420594046,1776288716703,-10000.01,8.322e-05,2]
[420594047,1776288716815,-10000.01,8.322e-05,2]
[420594048,1776288716927,-10000.01,8.322e-05,2]
[420594049,1776288717109,-10000.01,8.322e-05,2]
[420594050,1776288717207,-10000.01,8.322e-05,2]
[420594051,1776288717323,-10000.01,8.322e-05,2]
[420594052,1776288720521,-10000.01,8.322e-05,2]
[420594053,1776288720539,-10000.01,8.322e-05,2]
[420594054,1776288720553,-10000.01,8.322e-05,2]
[420594055,1776288720566,-10000.01,8.322e-05,2]
[420594056,1776288724165,-300.0,8.321e-05,2]
[420594057,1776288724204,-9400.01,8.322e-05,2]
[420594058,1776288724323,-3488.59918695,8.322e-05,2]
[420594059,1776288724424,980.0,8.322e-05,3]
[420594060,1776288732711,160.0,8.322e-05,3]
[420594061,1776289025679,441.34,0.00015429,30]
[420594062,1776289025799,882.69,0.0001637,30]
[420594063,1776289198020,488.2776,8.222e-05,2]
[420594078,1776289832893,-157.0,8.322e-05,3]
[420594079,1776289832903,-162.0,8.322e-05,3]
[420594080,1776289832912,-1288.0,8.322e-05,3]
[420594081,1776289832921,-250.0,8.334e-05,2]
[420594082,1776289832931,-258.0,8.334e-05,2]
[420594083,1776289832940,-273.35269716,8.367e-05,2]
[420594084,1776289832949,-10.0474644,8.379e-05,2]
[420594085,1776289832975,-157.7225356,8.379e-05,2]
[420594086,1776289832983,-300.0,8.546e-05,2]
[420594087,1776289832992,-456.59552556,8.546e-05,2]
[420594088,1776289833003,-569.13169042,8.546e-05,2]
[420594089,1776289833014,-174.27278402,8.546e-05,2]
[420594090,1776289833024,-169.0,8.547e-05,2]
[420594091,1776289833033,-161.0,8.547e-05,2]
[420594092,1776289833042,-924.145614,8.947e-05,2]
[420594093,1776289833051,-500.0,8.993e-05,2]
[420594094,1776289833061,-150.0,9e-05,2]
[420594095,1776289833070,-300.0,9.098e-05,2]
[420594096,1776289833079,-300.0,9.098e-05,2]
[420594097,1776289833089,-300.0,9.098e-05,2]
[420594098,1776289833098,-200.0,9.1e-05,2]
[420594099,1776289833108,-3479.34,9.106e-05,2]
[420594100,1776289833118,-294.899,9.106e-05,2]
[420594101,1776289833127,-150.0,9.106e-05,2]
[420594102,1776289833137,-14171.5378013,9.107e-05,2]
[420594103,1776289833159,-2277.63330726,9.107e-05,2]
[420594104,1776289833170,-73993.44876687,9.107e-05,2]
[420594105,1776289833181,-1254.41808677,9.107e-05,2]
[420594106,1776289833199,-760.36475751,9.107e-05,2]
[420594107,1776289833210,-7459.48,9.107e-05,2]
[420594108,1776289833226,-970.44892758,9.107e-05,2]
[420594109,1776289833238,-6708.27105271,9.107e-05,2]
[420594110,1776289833248,-250.0,9.154e-05,2]
[420594111,1776289833257,-457.16,9.231e-05,2]
[420594112,1776289833266,-2764.95,9.522e-05,2]
[420594113,1776289833276,-282.31352331,9.535e-05,2]
[420594114,1776289833317,-3027.36647669,9.535e-05,2]
[420594115,1776289833326,-1339.43199525,9.8e-05,2]
[420594126,1776289838513,-154.0,8.547e-05,2]
[420594127,1776289838528,-1160.56800475,9.8e-05,2]
[420594128,1776289838541,-500.0,9.873e-05,2]
[420594129,1776289838555,-381.5027972,9.873e-05,2]
[420594130,1776289838569,-3.92919805,9.899e-05,2]
[420594131,1776289838585,-496.07080195,9.899e-05,2]
[420594132,1776289838599,-500.0,9.899e-05,2]
[420594133,1776289838612,-500.0,9.899e-05,2]
[420594134,1776289838626,-500.0,9.899e-05,2]
[420594135,1776289838640,-500.0,9.899e-05,2]
[420594136,1776289838653,-500.0,9.899e-05,2]
[420594137,1776289838667,-500.0,9.899e-05,2]
[420594138,1776289838679,-500.0,9.899e-05,2]
[420594139,1776289838692,-500.0,9.899e-05,2]
[420594140,1776289838704,-500.0,9.899e-05,2]
[420594141,1776289838718,-102.3099952,9.899e-05,2]
[420594142,1776289838735,-397.6900048,9.899e-05,2]
[420594143,1776289838749,-394.93242829,9.899e-05,2]
[420594144,1776289838762,-500.0,9.899e-05,2]
[420594145,1776289838776,-500.0,9.899e-05,2]
[420594146,1776289838789,-500.0,9.899e-05,2]
[420594147,1776289838801,-500.0,9.899e-05,2]
[420594148,1776289838814,-500.0,9.899e-05,2]
[420594149,1776289838826,-500.0,9.899e-05,2]
[420594150,1776289838839,-500.0,9.899e-05,2]
[420594151,1776289838854,-500.0,9.899e-05,2]
[420594152,1776289838866,-16.32405216,9.899e-05,2]
[420594153,1776289839014,-441.26728895,9.899e-05,2]
[420594154,1776289839030,-42.40865889,9.899e-05,2]
[420594155,1776289839042,-500.0,9.899e-05,2]
[420594156,1776289839056,-153.49134111,9.899e-05,2]
[420594157,1776289839118,-346.50865889,9.899e-05,2]
[420594158,1776289839132,-428.65279842,9.899e-05,2]
[420594159,1776289839149,-71.34720158,9.899e-05,2]
[420594160,1776289839163,-230.39463199,9.899e-05,2]
[420594165,1776289840951,-269.60536801,9.899e-05,2]
[420594166,1776289840966,-500.0,9.899e-05,2]
[420594167,1776289840978,-500.0,9.899e-05,2]
[420594168,1776289840991,-500.0,9.899e-05,2]
[420594169,1776289841003,-500.0,9.899e-05,2]
[420594170,1776289841016,-500.0,9.899e-05,2]
[420594171,1776289841029,-500.0,9.899e-05,2]
[420594172,1776289841041,-500.0,9.899e-05,2]
[420594173,1776289841053,-500.0,9.899e-05,2]
[420594174,1776289841066,-442.90242023,9.899e-05,2]
[420594175,1776289841161,-57.09757977,9.899e-05,2]
[420594176,1776289841174,-500.0,9.899e-05,2]
[420594177,1776289841186,-500.0,9.899e-05,2]
[420594178,1776289841199,-500.0,9.899e-05,2]
[420594179,1776289841213,-500.0,9.899e-05,2]
[420594180,1776289841227,-21.7934773,9.899e-05,2]
[420594181,1776289841278,-478.2065227,9.899e-05,2]
[420594182,1776289841291,-500.0,9.899e-05,2]
[420594183,1776289841304,-14.1338373,9.899e-05,2]
[420594208,1776289846605,-1495.5412,9.007e-05,2]
[420594209,1776289846615,-485.8661627,9.899e-05,2]
[420594210,1776289846625,-500.0,9.899e-05,2]
[420594211,1776289846634,-261.2612756,9.899e-05,2]
[420594212,1776289846643,-500.0,9.899e-05,2]
[420594213,1776289846659,-500.0,9.899e-05,2]
[420594214,1776289846669,-500.0,9.899e-05,2]
[420594215,1776289846679,-500.0,9.899e-05,2]
[420594216,1776289846688,-500.0,9.899e-05,2]
[420594217,1776289846698,-500.0,9.899e-05,2]
[420594218,1776289846708,-500.0,9.899e-05,2]
[420594219,1776289846718,-500.0,9.899e-05,2]
[420594220,1776289846728,-500.0,9.899e-05,2]
[420594221,1776289846738,-500.0,9.899e-05,2]
[420594222,1776289846747,-300.0,9.899e-05,2]
[420594223,1776289846757,-500.0,9.899e-05,2]
[420594224,1776289846766,-500.0,9.899e-05,2]
[420594225,1776289846776,-500.0,9.899e-05,2]
[420594226,1776289846786,-500.0,9.899e-05,2]
[420594227,1776289846796,-284.65457228,9.899e-05,2]
[420594228,1776289846806,-500.0,9.899e-05,2]
[420594229,1776289846815,-500.0,9.899e-05,2]
[420594230,1776289846825,-500.0,9.899e-05,2]
[420594231,1776289846835,-641.25704214,9.899e-05,2]
[420594232,1776289846845,-207.11733001,9.899e-05,2]
[420594233,1776289846855,-500.0,9.899e-05,2]
[420594234,1776289846864,-515.10070623,9.899e-05,2]
[420594235,1776289846874,-500.0,9.899e-05,2]
[420594236,1776289846884,-500.0,9.899e-05,2]
[420594237,1776289846893,-500.0,9.899e-05,2]
[420594239,1776289846903,-500.0,9.899e-05,2]
[420594241,1776289846913,-166.03990867,9.899e-05,2]
[420594243,1776289846923,-67303.34242047,9.9e-05,2]
[420594244,1776289846947,-6552.59999987,9.9e-05,2]
[420594245,1776289846959,-8479.35632649,9.9e-05,2]
[420594246,1776289846971,-845.000003,9.9e-05,2]
[420594261,1776290732642,152.0,9.903e-05,30]
[420594270,1776291031583,-266.0,9.005e-05,2]
[420594271,1776291031593,-250.0,9.005e-05,2]
[420594272,1776291031604,-166.33063082,9.006e-05,2]
[420594273,1776291031614,-250.0,9.191e-05,2]
[420594274,1776291031623,-1200.0,9.285e-05,2]
[420594275,1776291031633,-2480.2,9.286e-05,2]
[420594276,1776291031643,-500.0,9.374e-05,2]
[420594277,1776291031652,-2000.0,9.668e-05,2]
[420594278,1776291031662,-150.0,9.786e-05,2]
[420594279,1776291031671,-2500.0,9.787e-05,2]
[420594280,1776291031681,-50506.88953617,9.787e-05,2]
[420594281,1776291031693,-5344.02188488,9.787e-05,2]
[420594282,1776291031705,-113045.51589281,9.787e-05,2]
[420594283,1776291031724,-2769.66149264,9.787e-05,2]
[420594284,1776291031736,-31482.12,9.787e-05,2]
[420594285,1776291031748,-5438.01816079,9.787e-05,2]
[420594286,1776291031760,-2481.28,9.787e-05,2]
[420594287,1776291031776,-557.92409173,9.787e-05,2]
[420594463,1776291039887,-351.43220163,9.687e-05,2]
[420594473,1776291039968,-1576.60394132,9.687e-05,2]
[420594479,1776291040020,-571.96385705,9.687e-05,2]
[420594481,1776291040030,-500.0,9.786e-05,2]
[420594483,1776291040039,-500.0,9.786e-05,2]
[420594485,1776291040049,-182.88289292,9.786e-05,2]
[420594487,1776291040059,-500.0,9.786e-05,2]
[420594489,1776291040068,-249.2582006,9.786e-05,2]
[420594491,1776291040077,-500.0,9.786e-05,2]
[420594493,1776291040086,-610.57049436,9.786e-05,2]
[420594495,1776291040096,-500.0,9.786e-05,2]
[420594497,1776291040105,-182.36189357,9.786e-05,2]
[420594499,1776291040114,-500.0,9.786e-05,2]
[420594501,1776291040123,-500.0,9.786e-05,2]
[420594503,1776291040132,-500.0,9.786e-05,2]
[420594505,1776291040141,-500.0,9.786e-05,2]
[420594507,1776291040151,-500.0,9.786e-05,2]
[420594509,1776291040171,-312.59956683,9.786e-05,2]
[420594511,1776291040181,-500.0,9.786e-05,2]
[420594513,1776291040191,-500.0,9.786e-05,2]
[420594515,1776291040200,-500.0,9.786e-05,2]
[420594517,1776291040209,-1531.00808703,9.787e-05,2]
[420594610,1776291041229,-9617.69284702,9.787e-05,2]
[420594616,1776291041278,-1286.54140739,9.787e-05,2]
[420594632,1776291041423,-845.26433067,9.787e-05,2]
[420595028,1776291045559,-645.92048028,9.787e-05,2]
[420595029,1776291045668,-4941.89118068,9.787e-05,2]
[420595030,1776291045776,-843.199996,9.787e-05,2]
[420595031,1776291045831,-6541.49999733,9.787e-05,2]
[420595072,1776291046550,-1622.4465798,9.787e-05,2]
[420595073,1776291046561,-1208.65612818,9.787e-05,2]
[420595074,1776291046573,-3451.26954433,9.787e-05,2]
[420595076,1776291046766,-993.80145634,9.787e-05,2]
[420595080,1776291157612,2703.05,0.000165,30]
[420595284,1776292231738,-1216.88,9.117e-05,2]
[420595286,1776292231749,-1500.0,9.314e-05,2]
[420595288,1776292231758,-460.96132518,9.631e-05,2]
[420595291,1776292231769,-583.20478716,9.631e-05,2]
[420595292,1776292231793,-544.02,9.631e-05,2]
[420595293,1776292231904,-264.23388766,9.631e-05,2]
[420595294,1776292231914,-1200.0,9.675e-05,2]
[420595295,1776292231924,-658.034,9.675e-05,2]
[420595296,1776292231933,-16740.82616085,9.676e-05,2]
[420595297,1776292231944,-3259.19383915,9.676e-05,2]
[420595298,1776292231954,-1283.0079,9.676e-05,2]
[420595299,1776292231963,-1000.0,9.687e-05,2]
[420595300,1776292231974,-1044.06,9.696e-05,2]
[420595301,1776292231983,-6887.36250186,9.765e-05,2]
[420595302,1776292231993,-150.0,9.774e-05,2]
[420595303,1776292232002,-3377.929,9.775e-05,2]
[420595304,1776292232011,-291.919,9.775e-05,2]
[420595305,1776292232021,-528.6314377,9.776e-05,2]
[420595306,1776292232030,-34824.25772441,9.776e-05,2]
[420595307,1776292232042,-1763.97926805,9.776e-05,2]
[420595308,1776292232054,-542.02307539,9.776e-05,2]
[420595309,1776292232065,-491.0360497,9.776e-05,2]
[420595310,1776292232076,-342.48315084,9.776e-05,2]
[420595311,1776292232087,-2800.70070936,9.776e-05,2]
[420595312,1776292232098,-468.75595281,9.776e-05,2]
[420595313,1776292232110,-2517.01251569,9.776e-05,2]
[420595314,1776292232121,-389.6710631,9.776e-05,2]
[420595317,1776292232143,-6892.47928265,9.776e-05,2]
[420595319,1776292232152,-555.52071735,9.776e-05,2]
[420595361,1776292238177,-515.9530991,9.676e-05,2]
[420595362,1776292238449,-721.79,9.676e-05,2]
[420595363,1776292238461,-3496.31103499,9.676e-05,2]
[420595371,1776292240667,-568.35262344,9.676e-05,2]
[420595392,1776292246380,-456.96597722,9.676e-05,2]
[420595393,1776292246392,-658.03402278,9.676e-05,2]
[420595407,1776292412281,-500.0,9.017e-05,2]
[420595408,1776292412304,-266.0,9.017e-05,2]
[420595409,1776292412329,-161.42,9.086e-05,2]
[420595410,1776292412351,-466.0544,9.214e-05,2]
[420595411,1776292412373,-300.0,9.481e-05,2]
[420595412,1776292412395,-2702.343,9.482e-05,2]
[420595413,1776292412418,-233.535,9.482e-05,2]
[420595414,1776292412441,-179.62420292,9.482e-05,2]
[420595415,1776292412467,-32510.02339708,9.586e-05,2]
[420595420,1776292510598,170.53245081,0.000165,30]
[420595422,1776292661381,500.0,0.000165,30]
[420595440,1776293432325,-200.0,8.797e-05,2]
[420595441,1776293432336,-250.0,8.831e-05,2]
[420595442,1776293432346,-2000.0,8.864e-05,2]
[420595443,1776293432356,-302.0146931,8.897e-05,2]
[420595444,1776293432366,-300.0,8.94e-05,2]
[420595445,1776293432377,-300.0,8.94e-05,2]
[420595446,1776293432387,-1200.0,8.94e-05,2]
[420595447,1776293432397,-5836.2849,8.941e-05,2]
[420595448,1776293432407,-5723.26,8.942e-05,2]
[420595449,1776293432417,-10220.02544674,8.942e-05,2]
[420595450,1776293432429,-331.12749932,8.942e-05,2]
[420595451,1776293432453,-444.0,8.942e-05,2]
[420595452,1776293432489,-442.20303043,8.942e-05,2]
[420595453,1776293432501,-2060.33272966,8.942e-05,2]
[420595454,1776293432514,-3220.12129385,8.942e-05,2]
[420595455,1776293432524,-150.0,9.04e-05,2]
[420595456,1776293432533,-1600.0,9.049e-05,2]
[420595457,1776293432543,-166.66,9.223e-05,2]
[420595458,1776293432553,-295.10060054,9.32e-05,2]
[420595459,1776293432562,-500.0,9.575e-05,2]
[420595460,1776293432572,-238.9781353,9.575e-05,2]
[420595461,1776293432582,-39068.94881162,9.576e-05,2]
[420595462,1776293432594,-28538.28184827,9.576e-05,2]
[420595463,1776293432696,-6444.33781323,9.576e-05,2]
[420595471,1776293438226,-1530.77808329,9.576e-05,2]
[420595472,1776293438528,-1165.45033526,9.576e-05,2]
[420595473,1776293438539,-930.65942056,9.576e-05,2]
[420595474,1776293438551,-251.76529873,9.576e-05,2]
[420595475,1776293438562,-343.30659554,9.576e-05,2]
[420595476,1776293438574,-3521.18509526,9.576e-05,2]
[420595477,1776293438585,-11162.00382275,9.576e-05,2]
[420595478,1776293438597,-1741.48362425,9.576e-05,2]
[420595479,1776293439211,-479.436717,9.576e-05,2]
[420595496,1776293440381,-13801.79304624,9.576e-05,2]
[420595497,1776293440393,-713.67957342,9.576e-05,2]
[420595498,1776293440699,-1572.14272786,9.576e-05,2]
[420595499,1776293440710,-2500.0,9.576e-05,2]
[420595500,1776293440722,-1933.47872742,9.576e-05,2]
[420595501,1776293440861,-593.21176664,9.576e-05,2]
[420595563,1776293444570,-13238.19055137,9.576e-05,2]
[420595564,1776293444582,-1838.8604776,9.576e-05,2]
[420595565,1776293444611,-138029.69210671,9.576e-05,2]
[420595566,1776293444640,-1138.32844206,9.576e-05,2]
[420595567,1776293444652,-4566.33915549,9.576e-05,2]
[420595568,1776293444664,-33707.73325943,9.576e-05,2]
[420595569,1776293444673,-157.0,9.586e-05,3]
[420595570,1776293444682,-161.0,9.586e-05,3]
[420595571,1776293444691,-1238.0,9.586e-05,3]
[420595572,1776293444700,-158.0,9.586e-05,3]
[420595573,1776293444709,-151.0,9.673e-05,2]
[420595574,1776293444718,-540.468,9.675e-05,2]
[420595575,1776293444727,-186.828,9.675e-05,2]
[420595576,1776293444736,-1000.0,9.676e-05,2]
[420595577,1776293444746,-250.0,9.677e-05,2]
[420595578,1776293444755,-500.0,9.689e-05,2]
[420595579,1776293444764,-161.32991408,9.689e-05,2]
[420595581,1776293446243,-338.67008592,9.689e-05,2]
[420595582,1776293446253,-424.68906781,9.689e-05,2]
[420595583,1776293446262,-530.25295366,9.689e-05,2]
[420595584,1776293446272,-500.0,9.689e-05,2]
[420595585,1776293446282,-10941.4976331,9.69e-05,2]
[420595586,1776293446291,-46949.60065709,9.69e-05,2]
[420595587,1776293446302,-74937.95040803,9.69e-05,2]
[420595588,1776293446346,-8052.44653517,9.69e-05,2]
[420595589,1776293446501,-6639.29115,9.69e-05,2]
[420595590,1776293446596,-267.61116032,9.69e-05,2]
[420595591,1776293446609,-938.18513509,9.69e-05,2]
[420595592,1776293446638,-391.32725833,9.69e-05,2]
[420595593,1776293446737,-57461.4431514,9.69e-05,2]
[420595594,1776293446795,-657.92929977,9.69e-05,2]
[420595595,1776293446807,-874.04884267,9.69e-05,2]
[420595777,1776293481757,3965.0,0.000164,30]
[420595783,1776293770710,999.60014874,0.000164,30]
[420595786,1776293975619,176.44,0.000165,30]
[420595792,1776294165232,4976.59,8.483e-05,2]
[420595793,1776294281791,314.84,8.325e-05,2]
[420595794,1776294349709,500.0,8.35e-05,2]
[420595834,1776294632726,-300.0,8.689e-05,2]
[420595837,1776294632736,-262.0,8.689e-05,2]
[420595839,1776294632745,-145.70682757,8.689e-05,2]
[420595848,1776294632786,-356.44950306,8.689e-05,2]
[420595851,1776294632798,-84.96945518,8.689e-05,2]
[420595853,1776294632807,-300.0,8.689e-05,2]
[420595854,1776294632817,-335.25660391,8.689e-05,2]
[420595856,1776294632829,-864.74339609,8.689e-05,2]
[420595858,1776294632838,-250.0,8.689e-05,2]
[420595860,1776294632848,-188.31545869,8.689e-05,2]
[420595862,1776294632857,-4495.285,8.69e-05,2]
[420595863,1776294632867,-249.74844262,8.69e-05,2]
[420595864,1776294632876,-250.0,8.69e-05,2]
[420595865,1776294633310,-500.0,8.697e-05,2]
[420595866,1776294633365,-150.0,8.7e-05,2]
[420595867,1776294633376,-150.0,8.704e-05,2]
[420595868,1776294633385,-157.75396648,8.704e-05,2]
[420595869,1776294633395,-1852.42,8.708e-05,2]
[420595870,1776294633404,-3100.543,8.842e-05,2]
[420595871,1776294633414,-211.113,8.842e-05,2]
[420595872,1776294633423,-249.74844261,8.988e-05,2]
[420595873,1776294633433,-150.0,9.011e-05,2]
[420595874,1776294633442,-150.0,9.012e-05,2]
[420595875,1776294633452,-179.91722233,9.012e-05,2]
[420595876,1776294633462,-500.0,9.012e-05,2]
[420595877,1776294633472,-500.0,9.012e-05,2]
[420595878,1776294633481,-500.0,9.012e-05,2]
[420595879,1776294633491,-500.0,9.012e-05,2]
[420595880,1776294633500,-500.0,9.012e-05,2]
[420595881,1776294633510,-506.2388693,9.012e-05,2]
[420595882,1776294633519,-500.0,9.012e-05,2]
[420595883,1776294633529,-500.0,9.012e-05,2]
[420595884,1776294633538,-500.0,9.012e-05,2]
[420595885,1776294633548,-500.0,9.012e-05,2]
[420595886,1776294633557,-500.0,9.012e-05,2]
[420595887,1776294633566,-500.0,9.012e-05,2]
[420595888,1776294633576,-500.0,9.012e-05,2]
[420595889,1776294633585,-500.0,9.012e-05,2]
[420595890,1776294633595,-500.0,9.012e-05,2]
[420595891,1776294633604,-500.0,9.012e-05,2]
[420595892,1776294633614,-274.55611307,9.012e-05,2]
[420595893,1776294633623,-150.0,9.012e-05,2]
[420595894,1776294633633,-150.0,9.012e-05,2]
[420595895,1776294633642,-500.0,9.012e-05,2]
[420595896,1776294633651,-500.0,9.012e-05,2]
[420595897,1776294633660,-500.0,9.012e-05,2]
[420595898,1776294633670,-500.0,9.012e-05,2]
[420595899,1776294633679,-500.0,9.012e-05,2]
[420595900,1776294633689,-502.90383192,9.012e-05,2]
[420595901,1776294633698,-500.0,9.012e-05,2]
[420595902,1776294633707,-500.0,9.012e-05,2]
[420595903,1776294633717,-500.0,9.012e-05,2]
[420595904,1776294633726,-500.0,9.012e-05,2]
[420595905,1776294633736,-500.0,9.012e-05,2]
[420595906,1776294633746,-462.56168231,9.012e-05,2]
[420595907,1776294633755,-500.0,9.012e-05,2]
[420595908,1776294633764,-5649.3077,9.105e-05,2]
[420595909,1776294633774,-593.2118,9.186e-05,2]
[420595910,1776294633783,-7877.88717186,9.206e-05,2]
[420595911,1776294633793,-5000.0,9.206e-05,2]
[420595912,1776294633802,-5000.0,9.206e-05,2]
[420595913,1776294633812,-5000.0,9.206e-05,2]
[420595914,1776294633821,-5000.0,9.206e-05,2]
[420595915,1776294633830,-189.0,9.286e-05,2]
[420595916,1776294633839,-241.82795801,9.286e-05,2]
[420595917,1776294633848,-249.74844261,9.286e-05,2]
[420595918,1776294633857,-1128.1913,9.29e-05,2]
[420595919,1776294633867,-578.20924308,9.39e-05,2]
[420595920,1776294633876,-209.40437684,9.39e-05,2]
[420595921,1776294633886,-9552.16786547,9.39e-05,2]
[420595922,1776294633895,-500.0,9.39e-05,2]
[420595923,1776294633904,-151.0,9.39e-05,2]
[420595924,1776294633913,-151.0,9.39e-05,2]
[420595925,1776294633922,-4058.25459268,9.39e-05,2]